[Event "Titled Tuesday Blitz November 14 Late 2023"]
[White "Ibarra Jerez, Jose Carlos"]
[Black "Troff, Kayden"]
[WhiteFideId "2226332"]
[BlackFideId "2047896"]
[WhiteElo "2972"]
[BlackElo "2810"]
[Result "0-1"]
[Round "5"]
[TimeControl "180+1"]
[Date "2023.11.14"]
[WhiteClock "0:00:04"]
[BlackClock "0:00:52"]
[Board "6"]

1. e4 {[%clk 0:02:58]}  c5 {[%clk 0:02:58]} 2. Nf3 {[%clk 0:02:58]}  g6 {[%clk 0:02:59]} 3. c3 {[%clk 0:02:57]}  Bg7 {[%clk 0:02:58]} 4. d4 {[%clk 0:02:57]}  cxd4 {[%clk 0:02:58]} 5. cxd4 {[%clk 0:02:57]}  d5 {[%clk 0:02:59]} 6. e5 {[%clk 0:02:55]}  Nc6 {[%clk 0:02:48]} 7. Bb5 {[%clk 0:02:52]}  Nh6 {[%clk 0:02:48]} 8. O-O {[%clk 0:02:45]}  O-O {[%clk 0:02:47]} 9. Bxc6 {[%clk 0:02:40]}  bxc6 {[%clk 0:02:48]} 10. b3 {[%clk 0:02:32]}  Bg4 {[%clk 0:02:47]} 11. Nbd2 {[%clk 0:02:31]}  f6 {[%clk 0:02:45]} 12. h3 {[%clk 0:02:27]}  Bxf3 {[%clk 0:02:44]} 13. Nxf3 {[%clk 0:02:28]}  Nf7 {[%clk 0:02:10]} 14. e6 {[%clk 0:02:03]}  Nd6 {[%clk 0:02:07]} 15. Ba3 {[%clk 0:02:01]}  Rc8 {[%clk 0:01:57]} 16. Re1 {[%clk 0:01:54]}  Bh6 {[%clk 0:01:55]} 17. Qc2 {[%clk 0:01:48]}  Ne4 {[%clk 0:01:47]} 18. Nh2 {[%clk 0:01:35]}  Bf4 {[%clk 0:01:42]} 19. f3 {[%clk 0:01:23]}  Ng3 {[%clk 0:01:39]} 20. Ng4 {[%clk 0:01:16]}  Kg7 {[%clk 0:01:30]} 21. Nf2 {[%clk 0:01:15]}  Nf5 {[%clk 0:01:16]} 22. Bc5 {[%clk 0:01:15]}  Qc7 {[%clk 0:01:11]} 23. g4 {[%clk 0:00:38]}  Nh4 {[%clk 0:01:01]} 24. Qe2 {[%clk 0:00:29]}  Bd2 {[%clk 0:00:52]} 25. Qxd2 {[%clk 0:00:16]}  Nxf3+ {[%clk 0:00:52]} 26. Kg2 {[%clk 0:00:11]}  Nxd2 {[%clk 0:00:52]} 27. Rad1 {[%clk 0:00:12]}  Ne4 {[%clk 0:00:51]} 28. Nxe4 {[%clk 0:00:11]}  dxe4 {[%clk 0:00:52]} 29. Rxe4 {[%clk 0:00:11]}  Rfd8 {[%clk 0:00:53]} 30. Rf1 {[%clk 0:00:04]}  Rd5 {[%clk 0:00:52]} 0-1


[Site "https://www.chess.com"]

[Event "Titled Tuesday Blitz November 14 Late 2023"]
[White "Rustemov, Alexander"]
[Black "Nihal Sarin"]
[WhiteFideId "4119002"]
[BlackFideId "25092340"]
[WhiteElo "2862"]
[BlackElo "3101"]
[Result "0-1"]
[Round "5"]
[TimeControl "180+1"]
[Date "2023.11.14"]
[WhiteClock "0:00:00"]
[BlackClock "0:01:32"]
[Board "8"]

1. d4 {[%clk 0:02:57]}  Nf6 {[%clk 0:02:59]} 2. c4 {[%clk 0:02:58]}  e6 {[%clk 0:03:00]} 3. Nf3 {[%clk 0:02:58]}  d5 {[%clk 0:02:59]} 4. Nc3 {[%clk 0:02:58]}  c6 {[%clk 0:03:00]} 5. e3 {[%clk 0:02:58]}  Nbd7 {[%clk 0:03:00]} 6. Qc2 {[%clk 0:02:58]}  b6 {[%clk 0:03:01]} 7. Bd3 {[%clk 0:02:54]}  Bb7 {[%clk 0:03:00]} 8. O-O {[%clk 0:02:53]}  Bd6 {[%clk 0:02:59]} 9. Rd1 {[%clk 0:02:50]}  O-O {[%clk 0:02:59]} 10. e4 {[%clk 0:02:47]}  dxe4 {[%clk 0:03:00]} 11. Nxe4 {[%clk 0:02:48]}  Nxe4 {[%clk 0:03:00]} 12. Bxe4 {[%clk 0:02:49]}  Nf6 {[%clk 0:03:01]} 13. Bg5 {[%clk 0:02:48]}  h6 {[%clk 0:03:01]} 14. Bh4 {[%clk 0:02:38]}  Be7 {[%clk 0:03:01]} 15. c5 {[%clk 0:02:21]}  Nxe4 {[%clk 0:03:00]} 16. Qxe4 {[%clk 0:02:19]}  Bxh4 {[%clk 0:03:00]} 17. Qxh4 {[%clk 0:02:19]}  Qd5 {[%clk 0:03:00]} 18. Qf4 {[%clk 0:02:03]}  Rad8 {[%clk 0:02:59]} 19. Qe5 {[%clk 0:01:59]}  Ba6 {[%clk 0:02:59]} 20. Qxd5 {[%clk 0:01:53]}  Rxd5 {[%clk 0:03:00]} 21. Ne5 {[%clk 0:01:52]}  Rc8 {[%clk 0:02:46]} 22. Rac1 {[%clk 0:01:51]}  f6 {[%clk 0:02:42]} 23. Ng4 {[%clk 0:01:47]}  Be2 {[%clk 0:02:37]} 24. Ne3 {[%clk 0:01:46]}  Bxd1 {[%clk 0:02:38]} 25. Nxd5 {[%clk 0:01:45]}  cxd5 {[%clk 0:02:39]} 26. Rxd1 {[%clk 0:01:44]}  bxc5 {[%clk 0:02:39]} 27. Rc1 {[%clk 0:01:38]}  c4 {[%clk 0:02:40]} 28. f4 {[%clk 0:01:29]}  Rb8 {[%clk 0:02:37]} 29. Rc2 {[%clk 0:01:28]}  h5 {[%clk 0:02:37]} 30. Kf2 {[%clk 0:01:23]}  Kf7 {[%clk 0:02:37]} 31. g3 {[%clk 0:01:20]}  e5 {[%clk 0:02:29]} 32. fxe5 {[%clk 0:01:16]}  fxe5 {[%clk 0:02:30]} 33. Ke3 {[%clk 0:01:10]}  Ke6 {[%clk 0:02:29]} 34. Rf2 {[%clk 0:00:56]}  Rb6 {[%clk 0:02:29]} 35. h3 {[%clk 0:00:46]}  Ra6 {[%clk 0:02:29]} 36. Rf8 {[%clk 0:00:34]}  Rxa2 {[%clk 0:02:29]} 37. Re8+ {[%clk 0:00:34]}  Kd6 {[%clk 0:02:16]} 38. dxe5+ {[%clk 0:00:32]}  Kd7 {[%clk 0:02:17]} 39. Ra8 {[%clk 0:00:22]}  Rxb2 {[%clk 0:02:17]} 40. Rxa7+ {[%clk 0:00:20]}  Ke6 {[%clk 0:02:17]} 41. Rxg7 {[%clk 0:00:20]}  Kxe5 {[%clk 0:02:09]} 42. Rg5+ {[%clk 0:00:19]}  Kd6 {[%clk 0:02:08]} 43. Rxh5 {[%clk 0:00:19]}  Rb3+ {[%clk 0:02:09]} 44. Kf4 {[%clk 0:00:17]}  c3 {[%clk 0:02:09]} 45. Ke3 {[%clk 0:00:13]}  c2+ {[%clk 0:01:48]} 46. Kd2 {[%clk 0:00:13]}  Rc3 {[%clk 0:01:49]} 47. Kc1 {[%clk 0:00:13]}  d4 {[%clk 0:01:49]} 48. Rh8 {[%clk 0:00:11]}  d3 {[%clk 0:01:49]} 49. Rd8+ {[%clk 0:00:11]}  Ke5 {[%clk 0:01:49]} 50. h4 {[%clk 0:00:11]}  Ke4 {[%clk 0:01:46]} 51. Re8+ {[%clk 0:00:06]}  Kf3 {[%clk 0:01:46]} 52. Rd8 {[%clk 0:00:06]}  Ra3 {[%clk 0:01:44]} 53. Kd2 {[%clk 0:00:03]}  Kg4 {[%clk 0:01:37]} 54. Rg8+ {[%clk 0:00:02]}  Kh3 {[%clk 0:01:36]} 55. Rc8 {[%clk 0:00:00]}  Kg4 {[%clk 0:01:32]} 0-1


[Site "https://www.chess.com"]

[Event "Titled Tuesday Blitz November 14 Late 2023"]
[White "Hakobyan, Aram"]
[Black "Pakleza, Zbigniew"]
[WhiteFideId "13306677"]
[BlackFideId "1119290"]
[WhiteElo "3028"]
[BlackElo "2823"]
[Result "1-0"]
[Round "5"]
[TimeControl "180+1"]
[Date "2023.11.14"]
[WhiteClock "0:00:10"]
[BlackClock "0:00:00"]
[Board "9"]

1. e4 {[%clk 0:03:00]}  d6 {[%clk 0:02:59]} 2. Nc3 {[%clk 0:02:58]}  Nf6 {[%clk 0:03:00]} 3. d4 {[%clk 0:02:57]}  c6 {[%clk 0:03:00]} 4. f4 {[%clk 0:02:54]}  Qb6 {[%clk 0:03:00]} 5. Be2 {[%clk 0:02:47]}  e5 {[%clk 0:03:00]} 6. Nf3 {[%clk 0:02:28]}  Nbd7 {[%clk 0:02:51]} 7. O-O {[%clk 0:02:13]}  Be7 {[%clk 0:02:42]} 8. Kh1 {[%clk 0:02:13]}  O-O {[%clk 0:02:38]} 9. Be3 {[%clk 0:02:07]}  Ng4 {[%clk 0:02:34]} 10. Bg1 {[%clk 0:02:03]}  exf4 {[%clk 0:02:31]} 11. Qd2 {[%clk 0:01:56]}  Ne3 {[%clk 0:02:20]} 12. Bxe3 {[%clk 0:01:55]}  fxe3 {[%clk 0:02:21]} 13. Qxe3 {[%clk 0:01:56]}  Ne5 {[%clk 0:02:02]} 14. Na4 {[%clk 0:01:32]}  Qa5 {[%clk 0:02:00]} 15. dxe5 {[%clk 0:01:32]}  Qxa4 {[%clk 0:01:59]} 16. exd6 {[%clk 0:01:32]}  Bxd6 {[%clk 0:02:00]} 17. e5 {[%clk 0:01:32]}  Be7 {[%clk 0:01:51]} 18. Bd3 {[%clk 0:01:31]}  h6 {[%clk 0:01:14]} 19. Nd4 {[%clk 0:01:23]}  Bc5 {[%clk 0:00:57]} 20. Rf4 {[%clk 0:00:43]}  Bxd4 {[%clk 0:00:45]} 21. Rxd4 {[%clk 0:00:43]}  Qa5 {[%clk 0:00:42]} 22. Rf1 {[%clk 0:00:43]}  Rd8 {[%clk 0:00:27]} 23. Rh4 {[%clk 0:00:24]}  Be6 {[%clk 0:00:12]} 24. Qe4 {[%clk 0:00:19]}  Kf8 {[%clk 0:00:06]} 25. Rhf4 {[%clk 0:00:14]}  Ke7 {[%clk 0:00:04]} 26. Bc4 {[%clk 0:00:10]}  Bxc4 {[%clk 0:00:01]} 27. Qxc4 {[%clk 0:00:11]}  Qd5 {[%clk 0:00:02]} 28. Rxf7+ {[%clk 0:00:10]}  Ke6 {[%clk 0:00:00]} 29. Qg4+ {[%clk 0:00:10]} 1-0


[Site "https://www.chess.com"]

[Event "Titled Tuesday Blitz November 14 Late 2023"]
[White "Mikaelyan, Arman"]
[Black "Paravyan, David"]
[WhiteFideId "13304852"]
[BlackFideId "4194985"]
[WhiteElo "2833"]
[BlackElo "3024"]
[Result "1/2-1/2"]
[Round "5"]
[TimeControl "180+1"]
[Date "2023.11.14"]
[WhiteClock "0:00:31"]
[BlackClock "0:01:15"]
[Board "10"]

1. d4 {[%clk 0:03:00]}  d5 {[%clk 0:02:48]} 2. Nf3 {[%clk 0:03:01]}  Nf6 {[%clk 0:02:48]} 3. c4 {[%clk 0:03:01]}  e6 {[%clk 0:02:49]} 4. Nc3 {[%clk 0:03:01]}  c5 {[%clk 0:02:49]} 5. cxd5 {[%clk 0:03:01]}  cxd4 {[%clk 0:02:50]} 6. Qxd4 {[%clk 0:03:01]}  exd5 {[%clk 0:02:51]} 7. Bg5 {[%clk 0:03:01]}  Be7 {[%clk 0:02:50]} 8. e3 {[%clk 0:03:02]}  O-O {[%clk 0:02:50]} 9. Rd1 {[%clk 0:02:57]}  Nc6 {[%clk 0:02:48]} 10. Qd3 {[%clk 0:02:57]}  Be6 {[%clk 0:02:45]} 11. Be2 {[%clk 0:02:56]}  h6 {[%clk 0:02:43]} 12. Bh4 {[%clk 0:02:40]}  Qb6 {[%clk 0:02:42]} 13. Qb5 {[%clk 0:02:40]}  Qxb5 {[%clk 0:02:40]} 14. Bxb5 {[%clk 0:02:34]}  g5 {[%clk 0:02:26]} 15. Bg3 {[%clk 0:02:35]}  Rfd8 {[%clk 0:02:23]} 16. O-O {[%clk 0:02:26]}  Ne4 {[%clk 0:02:23]} 17. Nxe4 {[%clk 0:01:55]}  dxe4 {[%clk 0:02:23]} 18. Bxc6 {[%clk 0:01:55]}  bxc6 {[%clk 0:02:23]} 19. Nd4 {[%clk 0:01:55]}  Bd5 {[%clk 0:02:12]} 20. Rc1 {[%clk 0:01:43]}  Bf6 {[%clk 0:02:01]} 21. Nxc6 {[%clk 0:01:36]}  Rdc8 {[%clk 0:02:00]} 22. Be5 {[%clk 0:01:09]}  Bxe5 {[%clk 0:01:58]} 23. Nxe5 {[%clk 0:01:10]}  Bxa2 {[%clk 0:01:58]} 24. Nd7 {[%clk 0:01:07]}  Bc4 {[%clk 0:01:48]} 25. Rfd1 {[%clk 0:01:02]}  Be2 {[%clk 0:01:43]} 26. Re1 {[%clk 0:00:57]}  Bd3 {[%clk 0:01:42]} 27. Nc5 {[%clk 0:00:57]}  Rab8 {[%clk 0:01:39]} 28. f3 {[%clk 0:00:54]}  Re8 {[%clk 0:01:31]} 29. b3 {[%clk 0:00:39]}  Rb5 {[%clk 0:01:24]} 30. Nxd3 {[%clk 0:00:33]}  exd3 {[%clk 0:01:24]} 31. Rc3 {[%clk 0:00:34]}  Reb8 {[%clk 0:01:14]} 32. Rxd3 {[%clk 0:00:30]}  Rxb3 {[%clk 0:01:15]} 33. Rxb3 {[%clk 0:00:31]}  Rxb3 {[%clk 0:01:16]} 34. Ra1 {[%clk 0:00:31]}  Rxe3 {[%clk 0:01:15]} 35. Rxa7 {[%clk 0:00:31]} 1/2-1/2


[Site "https://www.chess.com"]

[Event "Titled Tuesday Blitz November 14 Late 2023"]
[White "Salinas Herrera, Pablo"]
[Black "MKlose11"]
[WhiteFideId "3407128"]
[WhiteElo "2900"]
[BlackElo "2677"]
[Result "0-1"]
[Round "5"]
[TimeControl "180+1"]
[Date "2023.11.14"]
[WhiteClock "0:00:00"]
[BlackClock "0:00:05"]
[Board "13"]

1. d4 {[%clk 0:02:41]}  Nf6 {[%clk 0:02:59]} 2. Nf3 {[%clk 0:02:39]}  c5 {[%clk 0:02:59]} 3. d5 {[%clk 0:02:34]}  b5 {[%clk 0:02:59]} 4. a4 {[%clk 0:02:33]}  b4 {[%clk 0:02:57]} 5. c4 {[%clk 0:02:33]}  b3 {[%clk 0:02:46]} 6. Qxb3 {[%clk 0:02:31]}  d6 {[%clk 0:02:43]} 7. Qc2 {[%clk 0:02:28]}  g6 {[%clk 0:02:43]} 8. Nbd2 {[%clk 0:02:27]}  Bg7 {[%clk 0:02:44]} 9. e4 {[%clk 0:02:26]}  O-O {[%clk 0:02:43]} 10. Bd3 {[%clk 0:02:26]}  Na6 {[%clk 0:02:43]} 11. O-O {[%clk 0:02:26]}  Nb4 {[%clk 0:02:44]} 12. Qb1 {[%clk 0:02:26]}  Rb8 {[%clk 0:02:41]} 13. Re1 {[%clk 0:02:25]}  Nd7 {[%clk 0:02:34]} 14. Bf1 {[%clk 0:02:24]}  e6 {[%clk 0:02:20]} 15. dxe6 {[%clk 0:02:19]}  fxe6 {[%clk 0:02:19]} 16. Ra3 {[%clk 0:02:20]}  Qe7 {[%clk 0:02:16]} 17. Rae3 {[%clk 0:02:18]}  e5 {[%clk 0:02:07]} 18. b3 {[%clk 0:02:10]}  Nf6 {[%clk 0:02:04]} 19. h3 {[%clk 0:02:09]}  Nh5 {[%clk 0:02:01]} 20. Ba3 {[%clk 0:02:03]}  Nc6 {[%clk 0:01:59]} 21. Qd1 {[%clk 0:01:57]}  Nf4 {[%clk 0:01:55]} 22. Nb1 {[%clk 0:01:55]}  Nd4 {[%clk 0:01:51]} 23. Nxd4 {[%clk 0:01:51]}  exd4 {[%clk 0:01:45]} 24. Rf3 {[%clk 0:01:49]}  Be5 {[%clk 0:01:44]} 25. Bc1 {[%clk 0:01:46]}  Be6 {[%clk 0:01:20]} 26. Kh1 {[%clk 0:01:32]}  Rf7 {[%clk 0:01:10]} 27. Bxf4 {[%clk 0:01:26]}  Bxf4 {[%clk 0:01:09]} 28. g3 {[%clk 0:01:27]}  Be5 {[%clk 0:01:07]} 29. Rxf7 {[%clk 0:01:27]}  Qxf7 {[%clk 0:01:05]} 30. f4 {[%clk 0:01:28]}  Bxf4 {[%clk 0:01:01]} 31. gxf4 {[%clk 0:01:28]}  Qxf4 {[%clk 0:01:02]} 32. Nd2 {[%clk 0:01:21]}  Rf8 {[%clk 0:00:55]} 33. Bg2 {[%clk 0:01:21]}  Qg3 {[%clk 0:00:55]} 34. Rf1 {[%clk 0:01:20]}  Bxh3 {[%clk 0:00:52]} 35. Rxf8+ {[%clk 0:01:20]}  Kg7 {[%clk 0:00:39]} 36. Rf7+ {[%clk 0:01:02]}  Kg8 {[%clk 0:00:28]} 37. Qf3 {[%clk 0:00:47]}  Bxg2+ {[%clk 0:00:26]} 38. Qxg2 {[%clk 0:00:47]}  Qh4+ {[%clk 0:00:18]} 39. Qh2 {[%clk 0:00:39]}  Qxh2+ {[%clk 0:00:18]} 40. Kxh2 {[%clk 0:00:40]}  Kxf7 {[%clk 0:00:18]} 41. Kg3 {[%clk 0:00:41]}  Kf6 {[%clk 0:00:18]} 42. a5 {[%clk 0:00:32]}  Ke5 {[%clk 0:00:12]} 43. Kg4 {[%clk 0:00:30]}  h6 {[%clk 0:00:11]} 44. a6 {[%clk 0:00:29]}  d3 {[%clk 0:00:10]} 45. Kf3 {[%clk 0:00:24]}  Kd4 {[%clk 0:00:10]} 46. Kf4 {[%clk 0:00:22]}  h5 {[%clk 0:00:09]} 47. Nf3+ {[%clk 0:00:20]}  Kc3 {[%clk 0:00:09]} 48. Ke3 {[%clk 0:00:21]}  h4 {[%clk 0:00:06]} 49. Kf4 {[%clk 0:00:06]}  d2 {[%clk 0:00:06]} 50. Nxd2 {[%clk 0:00:04]}  Kxd2 {[%clk 0:00:07]} 51. b4 {[%clk 0:00:05]}  cxb4 {[%clk 0:00:05]} 52. c5 {[%clk 0:00:05]}  dxc5 {[%clk 0:00:04]} 53. e5 {[%clk 0:00:05]}  b3 {[%clk 0:00:05]} 54. e6 {[%clk 0:00:06]}  b2 {[%clk 0:00:05]} 55. e7 {[%clk 0:00:07]}  b1=Q {[%clk 0:00:06]} 56. e8=Q {[%clk 0:00:08]}  Qf1+ {[%clk 0:00:05]} 57. Kg4 {[%clk 0:00:07]}  Qe2+ {[%clk 0:00:04]} 58. Qxe2+ {[%clk 0:00:00]}  Kxe2 {[%clk 0:00:05]} 0-1


[Site "https://www.chess.com"]

[Event "Titled Tuesday Blitz November 14 Late 2023"]
[White "Yoo, Christopher Woojin"]
[Black "Sydoryka, Vladyslav"]
[WhiteFideId "30909694"]
[BlackFideId "14145928"]
[WhiteElo "3060"]
[BlackElo "2673"]
[Result "1/2-1/2"]
[Round "5"]
[TimeControl "180+1"]
[Date "2023.11.14"]
[WhiteClock "0:00:03"]
[BlackClock "0:00:03"]
[Board "15"]

1. d4 {[%clk 0:03:00]}  Nf6 {[%clk 0:02:59]} 2. c4 {[%clk 0:03:00]}  e6 {[%clk 0:03:00]} 3. Nc3 {[%clk 0:02:59]}  Bb4 {[%clk 0:02:59]} 4. Qc2 {[%clk 0:02:57]}  O-O {[%clk 0:02:59]} 5. Nf3 {[%clk 0:02:55]}  d5 {[%clk 0:03:00]} 6. a3 {[%clk 0:02:53]}  Bxc3+ {[%clk 0:02:59]} 7. Qxc3 {[%clk 0:02:54]}  b6 {[%clk 0:02:58]} 8. Bg5 {[%clk 0:02:51]}  h6 {[%clk 0:02:56]} 9. Bxf6 {[%clk 0:02:50]}  Qxf6 {[%clk 0:02:57]} 10. cxd5 {[%clk 0:02:50]}  exd5 {[%clk 0:02:54]} 11. Qxc7 {[%clk 0:02:50]}  Bf5 {[%clk 0:02:50]} 12. Qe5 {[%clk 0:02:49]}  Qxe5 {[%clk 0:02:17]} 13. Nxe5 {[%clk 0:02:50]}  f6 {[%clk 0:02:16]} 14. Nf3 {[%clk 0:02:35]}  Nc6 {[%clk 0:02:15]} 15. e3 {[%clk 0:02:29]}  Na5 {[%clk 0:02:15]} 16. Nd2 {[%clk 0:02:29]}  Rfc8 {[%clk 0:02:03]} 17. b4 {[%clk 0:01:02]}  Nc4 {[%clk 0:02:02]} 18. Nxc4 {[%clk 0:00:48]}  dxc4 {[%clk 0:02:03]} 19. Kd2 {[%clk 0:00:40]}  c3+ {[%clk 0:02:00]} 20. Kc1 {[%clk 0:00:40]}  a5 {[%clk 0:01:47]} 21. b5 {[%clk 0:00:38]}  a4 {[%clk 0:01:35]} 22. f3 {[%clk 0:00:37]}  Be6 {[%clk 0:01:36]} 23. Bd3 {[%clk 0:00:36]}  Bb3 {[%clk 0:01:34]} 24. e4 {[%clk 0:00:27]}  Ra5 {[%clk 0:01:33]} 25. d5 {[%clk 0:00:25]}  Kf7 {[%clk 0:01:29]} 26. Re1 {[%clk 0:00:25]}  Ke7 {[%clk 0:01:27]} 27. f4 {[%clk 0:00:25]}  Kd6 {[%clk 0:01:27]} 28. Rb1 {[%clk 0:00:23]}  Kc5 {[%clk 0:01:24]} 29. Re2 {[%clk 0:00:15]}  Re8 {[%clk 0:01:21]} 30. Re1 {[%clk 0:00:06]}  Bxd5 {[%clk 0:01:17]} 31. Rb4 {[%clk 0:00:06]}  Bb3 {[%clk 0:01:17]} 32. Re3 {[%clk 0:00:06]}  Raa8 {[%clk 0:01:16]} 33. Bc2 {[%clk 0:00:06]}  Kd6 {[%clk 0:00:33]} 34. Rxc3 {[%clk 0:00:05]}  Rac8 {[%clk 0:00:26]} 35. Rd4+ {[%clk 0:00:05]}  Ke7 {[%clk 0:00:26]} 36. Rdd3 {[%clk 0:00:06]}  Bc4 {[%clk 0:00:23]} 37. Rd4 {[%clk 0:00:05]}  Bxb5 {[%clk 0:00:22]} 38. Rxc8 {[%clk 0:00:04]}  Rxc8 {[%clk 0:00:23]} 39. Kd2 {[%clk 0:00:04]}  g5 {[%clk 0:00:21]} 40. Rb4 {[%clk 0:00:03]}  Bf1 {[%clk 0:00:19]} 41. fxg5 {[%clk 0:00:02]}  hxg5 {[%clk 0:00:19]} 42. g3 {[%clk 0:00:02]}  b5 {[%clk 0:00:17]} 43. Bd1 {[%clk 0:00:01]}  Bc4 {[%clk 0:00:14]} 44. Be2 {[%clk 0:00:01]}  Bxe2 {[%clk 0:00:10]} 45. Kxe2 {[%clk 0:00:02]}  Rc2+ {[%clk 0:00:10]} 46. Kf3 {[%clk 0:00:02]}  Rc3+ {[%clk 0:00:09]} 47. Kg4 {[%clk 0:00:02]}  Rxa3 {[%clk 0:00:10]} 48. Rxb5 {[%clk 0:00:03]}  Ke6 {[%clk 0:00:07]} 49. Ra5 {[%clk 0:00:03]}  Ra1 {[%clk 0:00:06]} 50. h4 {[%clk 0:00:03]}  gxh4 {[%clk 0:00:06]} 51. gxh4 {[%clk 0:00:03]}  a3 {[%clk 0:00:06]} 52. Kh5 {[%clk 0:00:02]}  a2 {[%clk 0:00:02]} 53. Kh6 {[%clk 0:00:03]}  Rh1 {[%clk 0:00:03]} 54. Rxa2 {[%clk 0:00:03]}  Rxh4+ {[%clk 0:00:03]} 55. Kg6 {[%clk 0:00:02]}  Rg4+ {[%clk 0:00:03]} 56. Kh5 {[%clk 0:00:02]}  Rxe4 {[%clk 0:00:04]} 57. Ra6+ {[%clk 0:00:02]}  Kf5 {[%clk 0:00:04]} 58. Ra5+ {[%clk 0:00:02]}  Kf4 {[%clk 0:00:03]} 59. Kg6 {[%clk 0:00:02]}  Re5 {[%clk 0:00:01]} 60. Ra3 {[%clk 0:00:02]}  Re4 {[%clk 0:00:02]} 61. Ra5 {[%clk 0:00:01]}  Re5 {[%clk 0:00:02]} 62. Ra4+ {[%clk 0:00:02]}  Re4 {[%clk 0:00:03]} 63. Ra1 {[%clk 0:00:03]}  f5 {[%clk 0:00:03]} 64. Rf1+ {[%clk 0:00:03]}  Kg4 {[%clk 0:00:03]} 65. Rg1+ {[%clk 0:00:04]}  Kf4 {[%clk 0:00:03]} 66. Kf6 {[%clk 0:00:04]}  Re3 {[%clk 0:00:02]} 67. Rf1+ {[%clk 0:00:03]}  Rf3 {[%clk 0:00:02]} 68. Rxf3+ {[%clk 0:00:02]}  Kxf3 {[%clk 0:00:03]} 69. Kxf5 {[%clk 0:00:03]} 1/2-1/2


[Site "https://www.chess.com"]

[Event "Titled Tuesday Blitz November 14 Late 2023"]
[White "Adla, Diego"]
[Black "Bortnyk, Olexandr"]
[WhiteFideId "100072"]
[BlackFideId "14120828"]
[WhiteElo "2662"]
[BlackElo "3007"]
[Result "0-1"]
[Round "5"]
[TimeControl "180+1"]
[Date "2023.11.14"]
[WhiteClock "0:00:00"]
[BlackClock "0:00:14"]
[Board "16"]

1. c4 {[%clk 0:03:00]}  d6 {[%clk 0:02:59]} 2. Nc3 {[%clk 0:03:00]}  Nf6 {[%clk 0:02:59]} 3. d4 {[%clk 0:02:59]}  g6 {[%clk 0:02:59]} 4. e4 {[%clk 0:02:58]}  Bg7 {[%clk 0:03:00]} 5. Nf3 {[%clk 0:02:58]}  Na6 {[%clk 0:03:00]} 6. Bf4 {[%clk 0:02:55]}  c5 {[%clk 0:02:53]} 7. d5 {[%clk 0:02:52]}  Qa5 {[%clk 0:02:51]} 8. Qd2 {[%clk 0:02:49]}  Bg4 {[%clk 0:02:48]} 9. Be2 {[%clk 0:02:48]}  Bxf3 {[%clk 0:02:48]} 10. Bxf3 {[%clk 0:02:48]}  Nd7 {[%clk 0:02:46]} 11. O-O {[%clk 0:02:41]}  h5 {[%clk 0:02:46]} 12. Rfc1 {[%clk 0:02:35]}  O-O {[%clk 0:02:37]} 13. Rab1 {[%clk 0:02:34]}  Nc7 {[%clk 0:02:23]} 14. a3 {[%clk 0:02:34]}  Rfb8 {[%clk 0:02:13]} 15. Be2 {[%clk 0:02:23]}  a6 {[%clk 0:02:10]} 16. Bh6 {[%clk 0:02:13]}  b5 {[%clk 0:02:06]} 17. Bxg7 {[%clk 0:02:13]}  Kxg7 {[%clk 0:02:07]} 18. b4 {[%clk 0:01:53]}  Qb6 {[%clk 0:01:44]} 19. bxc5 {[%clk 0:01:46]}  Nxc5 {[%clk 0:01:40]} 20. Qd4+ {[%clk 0:01:41]}  f6 {[%clk 0:01:40]} 21. cxb5 {[%clk 0:01:33]}  axb5 {[%clk 0:01:40]} 22. Nxb5 {[%clk 0:01:23]}  Ra4 {[%clk 0:01:31]} 23. Rb4 {[%clk 0:01:12]}  Nxb5 {[%clk 0:01:20]} 24. Bxb5 {[%clk 0:01:12]}  Rxa3 {[%clk 0:00:56]} 25. Rcb1 {[%clk 0:01:11]}  Qa5 {[%clk 0:00:47]} 26. g3 {[%clk 0:01:05]}  Ra2 {[%clk 0:00:43]} 27. h4 {[%clk 0:00:44]}  Qa3 {[%clk 0:00:39]} 28. Kg2 {[%clk 0:00:29]}  Rc2 {[%clk 0:00:34]} 29. Ba4 {[%clk 0:00:15]}  Rxb4 {[%clk 0:00:29]} 30. Rxb4 {[%clk 0:00:13]}  Rxf2+ {[%clk 0:00:26]} 31. Kxf2 {[%clk 0:00:08]}  Nd3+ {[%clk 0:00:25]} 32. Ke2 {[%clk 0:00:06]}  Nxb4 {[%clk 0:00:25]} 33. Bd1 {[%clk 0:00:06]}  Qa2+ {[%clk 0:00:22]} 34. Kf3 {[%clk 0:00:05]}  Qb1 {[%clk 0:00:20]} 35. Be2 {[%clk 0:00:05]}  Nc2 {[%clk 0:00:19]} 36. Qc4 {[%clk 0:00:04]}  Qh1+ {[%clk 0:00:18]} 37. Kf2 {[%clk 0:00:04]}  Qh2+ {[%clk 0:00:18]} 38. Kf3 {[%clk 0:00:02]}  Ne1+ {[%clk 0:00:18]} 39. Ke3 {[%clk 0:00:03]}  Qxg3+ {[%clk 0:00:19]} 40. Kd2 {[%clk 0:00:03]}  Ng2 {[%clk 0:00:16]} 41. Qc7 {[%clk 0:00:02]}  Qe3+ {[%clk 0:00:16]} 42. Kd1 {[%clk 0:00:03]}  Qxe4 {[%clk 0:00:16]} 43. Qb7 {[%clk 0:00:00]}  Qxd5+ {[%clk 0:00:14]} 0-1


[Site "https://www.chess.com"]

[Event "Titled Tuesday Blitz November 14 Late 2023"]
[White "Alekseenko, Kirill"]
[Black "reevecanada"]
[WhiteFideId "4135539"]
[WhiteElo "2961"]
[BlackElo "2651"]
[Result "1-0"]
[Round "5"]
[TimeControl "180+1"]
[Date "2023.11.14"]
[WhiteClock "0:02:09"]
[BlackClock "0:01:44"]
[Board "17"]

1. e4 {[%clk 0:03:00]}  c5 {[%clk 0:02:55]} 2. Nf3 {[%clk 0:03:01]}  d6 {[%clk 0:02:55]} 3. d4 {[%clk 0:03:01]}  cxd4 {[%clk 0:02:56]} 4. Nxd4 {[%clk 0:03:01]}  Nf6 {[%clk 0:02:56]} 5. Nc3 {[%clk 0:03:02]}  a6 {[%clk 0:02:56]} 6. Be2 {[%clk 0:03:02]}  e5 {[%clk 0:02:56]} 7. Nb3 {[%clk 0:03:03]}  Be6 {[%clk 0:02:56]} 8. f4 {[%clk 0:03:01]}  exf4 {[%clk 0:02:55]} 9. Bxf4 {[%clk 0:03:00]}  Nc6 {[%clk 0:02:55]} 10. Qd2 {[%clk 0:02:55]}  Ne5 {[%clk 0:02:55]} 11. O-O-O {[%clk 0:02:53]}  Be7 {[%clk 0:02:54]} 12. Nd4 {[%clk 0:02:47]}  Bd7 {[%clk 0:02:47]} 13. Rhg1 {[%clk 0:02:39]}  b5 {[%clk 0:02:45]} 14. a3 {[%clk 0:02:38]}  Rc8 {[%clk 0:02:43]} 15. Kb1 {[%clk 0:02:37]}  O-O {[%clk 0:02:42]} 16. g4 {[%clk 0:02:37]}  Ne8 {[%clk 0:02:19]} 17. Nd5 {[%clk 0:02:34]}  Nc7 {[%clk 0:02:18]} 18. Nf5 {[%clk 0:02:32]}  Nxd5 {[%clk 0:02:14]} 19. Qxd5 {[%clk 0:02:31]}  Bxf5 {[%clk 0:02:13]} 20. gxf5 {[%clk 0:02:29]}  Rc5 {[%clk 0:02:11]} 21. Qxc5 {[%clk 0:02:28]}  dxc5 {[%clk 0:01:57]} 22. Rxd8 {[%clk 0:02:27]}  Rxd8 {[%clk 0:01:57]} 23. Bxe5 {[%clk 0:02:27]}  Rd2 {[%clk 0:01:57]} 24. Rxg7+ {[%clk 0:02:18]}  Kf8 {[%clk 0:01:55]} 25. Rg2 {[%clk 0:02:19]}  c4 {[%clk 0:01:52]} 26. Bc3 {[%clk 0:02:14]}  Rd8 {[%clk 0:01:50]} 27. f6 {[%clk 0:02:14]}  Bc5 {[%clk 0:01:49]} 28. e5 {[%clk 0:02:13]}  Bd4 {[%clk 0:01:47]} 29. Bb4+ {[%clk 0:02:08]}  Ke8 {[%clk 0:01:46]} 30. Rg8+ {[%clk 0:02:08]}  Kd7 {[%clk 0:01:45]} 31. Bg4+ {[%clk 0:02:09]}  Kc7 {[%clk 0:01:44]} 32. Ba5+ {[%clk 0:02:09]} 1-0


[Site "https://www.chess.com"]